Cogmind - Beta 13 @@@ ROGUE MODE // 2024.04.02 @ 06:59:23 Player: TurnLeft25 Result: Destroyed by Y-45 Defender with Heavy Assault Rifle Performance ------------- Evolutions (2) 1000 Regions Visited (4) 800 Robots Destroyed (45) 225 Value Destroyed (1475) 1475 Prototype IDs (1) 20 Alien Tech Used (0) 0 Bonus (0) 0 TOTAL SCORE: 3520 Bonus ------- None Cogmind --------- Core Integrity 0/550 Matter 249/300 Energy 75/100 System Corruption 0% Temperature Cool (29) Movement Flying (40) Location -8/Storage Parts ------- > --- POWER (1) -------- (None) > --- PROPULSION (2) --- Improved Flight Unit > --- UTILITY (4) ------ Improved Sensor Array Improved Signal Interpreter > --- WEAPON (4) ------- (None) > --- INVENTORY (5) ---- Light Ion Engine Sensor Array Sensor Array Core Shielding Shield Generator Peak State ------------ > --- POWER ------------ Light Deuterium Engine > --- PROPULSION ------- Improved Treads Improved Treads > --- UTILITY ---------- Improved Heat Sink High-capacity Storage Unit Light Armor Plating Light Armor Plating > --- WEAPON ----------- Particle Gun Particle Gun Improved Light Cannon Flak Cannon > --- INVENTORY -------- Light Ion Engine Light Deuterium Engine Light Nuclear Core Light Treads Light Treads Light Treads Light Treads Improved Flight Unit Heat Sink Visual Processing Unit Sensor Array Sensor Array Signal Interpreter Signal Interpreter Improved Signal Interpreter Improved Signal Interpreter Core Shielding Core Shielding Light Armor Plating Shield Generator [Rating: 25] Favorites ----------- Power Light Nuclear Core Engine Ion Engine Power Core Light Nuclear Core Propulsion Light Treads Treads Light Treads Flight Unit Improved Flight Unit Utility High-capacity Storage Unit Device Improved Heat Sink Storage High-capacity Storage Unit Processor Improved Signal Interpreter Protection Light Armor Plating Weapon Light Cannon Energy Gun Particle Gun Ballistic Gun Autogun Ballistic Cannon Light Cannon Build | -11 -10 -9 -8 -8 ------- Run | Yrd Mat Mat Mat Sto Slots Evolved 4 | . . 2 2 . Power . | . . . . . Propulsion . | . . . . . Utility 2 | . . . 2 . Weapon 2 | . . 2 . . Parts Attached 41 | 6 1 10 21 3 Power 6 | 1 . 1 3 1 Engine 3 | 1 . . 1 1 Core 3 | . . 1 2 . Reactor . | . . . . . Propulsion 12 | 2 . 3 5 2 Treads 11 | 2 . 3 5 1 Leg . | . . . . . Wheel . | . . . . . Hover . | . . . . . Flight 1 | . . . . 1 Utility 11 | 1 . 2 8 . Device 3 | . . 1 2 . Storage 2 | 1 . 1 . . Processor 1 | . . . 1 . Hackware . | . . . . . Protection 5 | . . . 5 . Artifact . | . . . . . Weapon 12 | 2 1 4 5 . Energy Gun 6 | 1 . 2 3 . Energy Cannon . | . . . . . Ballistic Gun 2 | 1 . 1 . . Ballistic Cannon 4 | . 1 1 2 . Launcher . | . . . . . Special Weapon . | . . . . . Impact Weapon . | . . . . . Slashing Weapon . | . . . . . Piercing Weapon . | . . . . . Special Melee Weapon . | . . . . . Unidentified Prototypes 1 | . . . . 1 Parts Lost 21 | . . 2 13 6 Power 5 | . . 1 2 2 Propulsion 4 | . . . 1 3 Utility 5 | . . . 4 1 Weapon 7 | . . 1 6 . Highest Loss Streak 7 | . . 1 7 6 To Critical Strikes 1 | . . . 1 . Average Slot Usage (%) 89 | . 97 90 89 59 Engine 5 | . 14 5 2 2 Core 5 | . . 5 6 6 Treads 20 | . 28 20 17 16 Device 5 | . . 5 8 9 Storage 10 | . 14 11 9 9 Protection 10 | . 11 5 15 8 Energy Gun 5 | . 1 2 11 . Ballistic Gun 10 | . 14 16 3 . Ballistic Cannon 14 | . 12 17 12 . Naked Turns . | . . . . . Heaviest Build 68 | 14 16 58 68 47 Greatest Support 46 | 40 40 43 46 40 Greatest Overweight (x) 18 | . . 18 2 2 Average Overweight (x) . | . . . 1 1 Largest Inventory Capacity 20 | 8 8 20 20 20 Average Capacity 16 | 7 8 17 20 19 Most Carried 20 | 3 4 17 20 10 Average Carried 11 | . 2 11 16 9 Final Capacity 20 | 8 8 20 20 5 Final Carried 16 | 1 4 16 10 5 Class Distribution -------------------- 27% | Tank 21% | Mutant 19% | Scavenger-Tank 15% | Gunner 7% | Scavenger-Gunner 7% | Scavenger-Mutant Dominant Class ---------------- Mutant | -10/Materials Tank | -9/Materials Scavenger-Tank | -8/Materials Scavenger-Mutant | -8/Storage Resources | -11 -10 -9 -8 -8 ----------- Run | Yrd Mat Mat Mat Sto Matter Collected 1604 | 222 128 754 500 . Remotely . | . . . . . Salvage Created 1420 | . 233 692 495 . Parts 85 | . 15 48 22 . Haulers Intercepted 1 | . . 1 . . Recyclers Shooed 5 | . . 3 2 . Parts Field Recycled . | . . . . . Retrieved Matter . | . . . . . Parts Self-Destructed . | . . . . . Prevented . | . . . . . Kills | -11 -10 -9 -8 -8 ------- Run | Yrd Mat Mat Mat Sto Combat Hostiles Destroyed 33 | . 3 18 12 . Guns 12 | . . 10 2 . Cannons 21 | . 3 8 10 . Classes Destroyed 11 | . 4 3 4 . Worker 3 | . 1 1 1 . Hauler 1 | . . 1 . . Recycler 1 | . 1 . . . Watcher 7 | . 1 3 3 . Swarmer 3 | . . 3 . . Grunt 23 | . 3 14 6 . Brawler 1 | . . . 1 . Sentry 2 | . . 1 1 . Specialist 2 | . . . 2 . Hunter 1 | . . . 1 . Heavy 1 | . . . 1 . Best Kill Streak 5 | . 5 3 5 . Combat Bots Only 3 | . 3 3 3 . Max Kills in Single Turn 2 | . 1 2 1 . Gunslinging . | . . . . . Exploded . | . . . . . Melee . | . . . . . Uniques/NPCs Destroyed . | . . . . . Combat | -11 -10 -9 -8 -8 -------- Run | Yrd Mat Mat Mat Sto Hostile Shots Fired 241 | . 11 80 94 56 Missed 57 | . 1 20 28 8 Damage Taken 3179 | . 110 826 1416 827 Core 808 | . 11 244 155 398 Absorbed by Shields . | . . . . . Redirected to Shielding 52 | . . . 11 41 Regen/Repaired (Parts) 104 | . . 104 . . Core Remaining (%) 78 | 100 95 39 . . Volleys Fired 123 | . 12 53 58 . Largest 4 | . 2 4 4 . Hottest 213 | . 55 137 213 . Shots Fired 334 | . 24 183 127 . Gun 173 | . 12 103 58 . Cannon 161 | . 12 80 69 . Launcher . | . . . . . Special . | . . . . . Kinetic 284 | . 24 178 82 . Thermal 50 | . . 5 45 . Explosive . | . . . . . Electromagnetic . | . . . . . Robot Hit Streak 7 | . 5 7 6 . Robot Miss Streak 6 | . 1 5 6 . Penetration Max . | . . . . . Secondary Targets . | . . . . . Shots Hit Robots 182 | . 16 89 77 . Core Hits 104 | . 9 35 59 1 Critical Kills . | . . . . . Critical Parts Destroyed . | . . . . . Critical Strikes 6 | . 2 2 2 . Burn 2 | . . . 2 . Blast 4 | . 2 2 . . Melee Attacks . | . . . . . Impact . | . . . . . Slashing . | . . . . . Piercing . | . . . . . Sneak Attacks . | . . . . . Combat Hostiles . | . . . . . Follow-up Attacks . | . . . . . Damage Inflicted 3233 | . 238 1464 1527 4 Guns 1433 | . 118 813 502 . Cannons 1785 | . 120 647 1018 . Explosions . | . . . . . Melee . | . . . . . Ramming 15 | . . 4 7 4 Kinetic 2868 | . 238 1427 1203 . Thermal 350 | . . 33 317 . Explosive . | . . . . . Electromagnetic . | . . . . . Impact . | . . . . . Slashing . | . . . . . Piercing . | . . . . . Highest Corruption . | . . . . . Average Corruption . | . . . . . Corruption Purged . | . . . . . Corruption Blocked . | . . . . . Overload Shots . | . . . . . Overflow Damage 14 | . . 14 . . Projectiles 14 | . . 14 . . Explosions . | . . . . . Melee . | . . . . . Knockbacks 13 | . . 3 10 . Impact . | . . . . . Kinetic 13 | . . 3 10 . Secondary . | . . . . . Self-Inflicted Damage . | . . . . . Shots . | . . . . . Rammed 8 | . 1 2 2 3 Targets Rammed 8 | . 1 2 2 3 Kicked . | . . . . . Crushed . | . . . . . Highest Temperature 589 | . 15 589 344 . Average Temperature 105 | . 8 122 100 . Received Heat Transfer 1302 | . 63 366 486 387 Effects 8 | . . 6 2 . Energy Bleed 2 | . . 1 1 . Interference 1 | . . 1 . . Matter Decay 1 | . . . 1 . Damage (minor) 1 | . . 1 . . Damage (major) 1 | . . 1 . . Damage (core) 2 | . . 2 . . Siege Activations . | . . . . . Robots Corrupted . | . . . . . Combat Hostiles . | . . . . . Parts Fried . | . . . . . Impact Corruptions . | . . . . . Robots Melted . | . . . . . Combat Hostiles . | . . . . . Parts Melted . | . . . . . Heat Transferred 988 | . . 75 913 . Parts Sabotaged . | . . . . . Parts Stolen . | . . . . . Parts Stripped . | . . . . . Power Chain Reactions . | . . . . . Alert | -11 -10 -9 -8 -8 ------- Run | Yrd Mat Mat Mat Sto Peak Influence 340 | . 125 340 245 92 Initial 108 | . . 52 108 77 Average 158 | . 72 208 152 80 Maximum Alert Level 1 | . . 1 1 . Low Security (%) 65 | 100 100 41 77 100 Level 1 34 | . . 58 22 . Level 2 . | . . . . . Level 3 . | . . . . . Level 4 . | . . . . . Level 5 . | . . . . . High Security . | . . . . . Max Security . | . . . . . Squads Dispatched 10 | . 1 3 5 1 Investigation 5 | . 1 3 1 . Extermination . | . . . . . Reinforcement 3 | . . . 2 1 Assault . | . . . . . Garrison 2 | . . . 2 . Intercept . | . . . . . Searches Triggered . | . . . . . Construction Impeded . | . . . . . Haulers Reinforced . | . . . . . Active Scanning Responses . | . . . . . Cargo Convoy Interrupts . | . . . . . Stealth | -11 -10 -9 -8 -8 --------- Run | Yrd Mat Mat Mat Sto Distress Signals 3 | . . 1 1 1 Communications Jammed . | . . . . . Distress Signals . | . . . . . Times Spotted 61 | . 6 27 20 8 Peak Tracking Total 9 | . 2 5 4 9 Tactical Retreats 3 | . . 3 . . Traps | -11 -10 -9 -8 -8 ------- Run | Yrd Mat Mat Mat Sto Traps Triggered 3 | . . 1 1 1 Indirectly . | . . . . . Trap Hack Attempts . | . . . . . Triggered . | . . . . . Disarmed . | . . . . . Reprogrammed . | . . . . . Reused . | . . . . . Traps Extracted . | . . . . . Installed . | . . . . . Triggered . | . . . . . Machines | -11 -10 -9 -8 -8 ---------- Run | Yrd Mat Mat Mat Sto Machines Disabled 3 | . . 3 . . Max in Single Turn 1 | . . 1 . . Machines Repaired . | . . . . . Machines Dismantled . | . . . . . Machines Sabotaged . | . . . . . Overloaded Fab Kills . | . . . . . Hacking | -11 -10 -9 -8 -8 --------- Run | Yrd Mat Mat Mat Sto Machines Accessed 10 | . 4 5 1 . Terminals 8 | . 3 4 1 . Fabricators . | . . . . . Repair Stations 2 | . 1 1 . . Recycling Units . | . . . . . Scanalyzers . | . . . . . Garrison Access . | . . . . . Total Hacks 36 | . 14 19 3 . Successful 17 | . 6 10 1 . Failed 19 | . 8 9 2 . Catastrophic 3 | . 2 1 . . Database Lockouts . | . . . . . Manual . | . . . . . Terminals 27 | . 10 14 3 . Fabricators . | . . . . . Repair Stations 9 | . 4 5 . . Recycling Units . | . . . . . Scanalyzers . | . . . . . Garrison Access . | . . . . . Terminal Hacks 12 | . 5 6 1 . Record 7 | . 4 3 . . Robot Analysis 1 | . . 1 . . Branch Access Points 1 | . . . 1 . Unreport Threat 1 | . . 1 . . Transport Status 1 | . . 1 . . Hauler Manifests 1 | . 1 . . . Fabricator Hacks . | . . . . . Repair Station Hacks 5 | . 1 4 . . Scan Component 2 | . . 2 . . Repair 2 | . . 2 . . Refit 1 | . 1 . . . Recycling Unit Hacks . | . . . . . Scanalyzer . | . . . . . Garrison Access Hacks . | . . . . . Unauthorized Hacks . | . . . . . Terminals . | . . . . . Fabricators . | . . . . . Repair Stations . | . . . . . Recycling Units . | . . . . . Scanalyzers . | . . . . . Garrison Access . | . . . . . Data Cores Recovered . | . . . . . Used . | . . . . . Hacking Detections 9 | . 3 5 1 . Full Trace Events 7 | . 2 4 1 . Feedback Events . | . . . . . Feedback Blocked . | . . . . . Robot Schematics Acquired . | . . . . . Robots Built . | . . . . . Authchips . | . . . . . Time . | . . . . . Total Robot Build Rating . | . . . . . Part Schematics Acquired . | . . . . . Parts Built . | . . . . . Authchips . | . . . . . Time . | . . . . . Total Part Build Rating . | . . . . . Parts Repaired 2 | . . 2 . . Time 52 | . . 52 . . Parts Recycled . | . . . . . Recycled Matter . | . . . . . Retrieved Matter . | . . . . . Retrieved Components . | . . . . . Parts Scanalyzed . | . . . . . Part Schematics Acquired . | . . . . . Parts Damaged . | . . . . . Bothacking | -11 -10 -9 -8 -8 ------------ Run | Yrd Mat Mat Mat Sto Used RIF Installer . | . . . . . Robots Hacked . | . . . . . Non-combat . | . . . . . Combat . | . . . . . Robot Hacks Applied . | . . . . . Relay Couplers Released . | . . . . . Fabnet Peak Effective % . | . . . . . Robots Rewired . | . . . . . Allies Hacked . | . . . . . Hacks Repelled . | . . . . . Allies | -11 -10 -9 -8 -8 -------- Run | Yrd Mat Mat Mat Sto Total Allies . | . . . . . Largest Group . | . . . . . Highest-Rated Group . | . . . . . Highest-Rated Ally . | . . . . . Total Orders . | . . . . . Ally Attacks . | . . . . . Total Damage . | . . . . . Kills . | . . . . . Allies Corrupted . | . . . . . Allies Melted . | . . . . . Intel | -11 -10 -9 -8 -8 ------- Run | Yrd Mat Mat Mat Sto Robot Analysis Total 1 | . . 1 . . Derelict Logs Recovered . | . . . . . Drone Launches . | . . . . . Drone Recoveries . | . . . . . Exploration | -11 -10 -9 -8 -8 ------------- Run | Yrd Mat Mat Mat Sto Turns Passed 2303 | 84 302 1041 789 87 Spaces Moved 855 | 52 162 368 242 31 Core 16 | 10 . 6 . . Treads 837 | 42 162 362 242 29 Legs . | . . . . . Wheels . | . . . . . Hover . | . . . . . Flight 2 | . . . . 2 Fastest Speed 40 | 50 160 160 240 40 Average Speed 213 | 138 160 227 240 229 Slowest Speed 950 | 160 160 950 320 320 Overloaded Moves . | . . . . . Propulsion Burnouts . | . . . . . Robots Hopped 1 | . . . . 1 Cave-ins Triggered . | . . . . . Exploration Rate (%) 21 | 4 32 40 21 10 Regions Visited 4 Branch Regions 1 Pre-discovered Areas . | . . . . . Known Exits Taken 1 | . . . 1 . Unknown Exits Taken 3 | 1 1 1 . . Scrap Searched . | . . . . . Spaces Dug . | . . . . . Terrain Destroyed 3 | . . . 3 . Melee . | . . . . . Projectile 3 | . . . 3 . AOE . | . . . . . Terrain Rammed . | . . . . . Walls Destroyed . | . . . . . Machines Disabled . | . . . . . Actions | -11 -10 -9 -8 -8 --------- Run | Yrd Mat Mat Mat Sto Total 1082 | 64 180 455 346 37 Wait 4 | . . . 4 . Move 849 | 51 161 367 241 29 Hop 1 | . . . . 1 Pick Up 45 | 7 4 20 14 . Fast Attach 1 | . . . 1 . Attach 30 | 6 . 6 15 3 Detach . | . . . . . Swap 10 | . 1 4 5 . Drop 11 | . 1 3 6 1 Fire 123 | . 12 53 58 . Melee . | . . . . . Ram 1 | . . . . 1 Kick . | . . . . . Crush 7 | . 1 2 2 2 Escape Stasis . | . . . . . Rewire . | . . . . . Trap . | . . . . . Miscellaneous . | . . . . . Route ------- -11/Scrapyard -10/Materials -9/Materials (discovered 2 exits: *Mat / [*Min]) -8/Materials -8/Storage History --------- Turn | Location | Event 4 | -11/Scrapyard | Discovered new exit (range 16) 85 | -11/Scrapyard | Entered Materials 310 | -10/Materials | Build established: Mutant 325 | -10/Materials | Discovered new exit (range 16) 387 | -10/Materials | Entered another Materials area 387 | -9/Materials | Evolved 2 slots: Weapon x2 726 | -9/Materials | Build established: Tank 914 | -9/Materials | Core integrity fell below 50% 1077 | -9/Materials | Discovered new exit (range 12) 1148 | -9/Materials | Repaired Lgt. Treads 1174 | -9/Materials | Repaired Lgt. Treads 1229 | -9/Materials | Build established: Gunner 1333 | -9/Materials | Discovered new exit (range 15) 1428 | -9/Materials | Entered another Materials area 1428 | -8/Materials | Evolved 2 slots: Utility x2 1745 | -8/Materials | Build established: Scavenger-Tank 2021 | -8/Materials | Identified exit to Storage 2051 | -8/Materials | Garrison activated, responded to threat 2114 | -8/Materials | Lost 7 parts (1p1n3u2w) 2217 | -8/Materials | Entered Storage 2297 | -8/Storage | Core integrity fell below 50% 2303 | -8/Storage | Core integrity fell below 20% 2304 | -8/Storage | Destroyed by Y-45 Defender with Heavy Assault Rifle Last Messages --------------- ALERT: Hostiles spotted, dispatching reinforcements to Terminal S007. Lgt. Nuclear Core destroyed. Triggered Explosive Trap. An explosion rips through the floor. Lgt. Treads destroyed. Slammed into G-47 Trooper. Lgt. Treads destroyed. Slammed into G-50 Soldier. Lgt. Treads destroyed. Lgt. Deuterium Engine destroyed. Slammed into G-50 Soldier. U-05 Engineer lays Concrete. Core Shielding destroyed. U-05 Engineer builds a Wall. Identified Imp. Flight Unit. Flying robots can pass through spaces occupied by others, even hostile robots. Dropped Hcp. Storage Unit. U-05 Engineer lays Concrete. Map ----- +----------------------------------------------------+ | ???????????????????????????????????????? | | ???????????????????????????????????????? | | ???????????????????????????????????????? | | ???????????????????????????????????????? | | ???????????????????????????????????????? | | ???????????????????????????????????????? | | ???????????????????????????????????????? | | ???????????????????????????????????????? | | ???????????????????????????????????????? | | ???????????????????????????????????????? | | ???????????????????????????????????????? | | ????????????????????? ???????????????? | | ???????????????????w? ???????????????? | | ????????????????????? ????????????????? | | ???????????????????? ????????????????? | | ???????????????????? #????????????????? | | ???????????????????? a#????????????????? | | ??????????????????? #????????????????? | | ??????????????????? #????????????????? | | #########?????###?? #????????????????? | | # ########### #########????????? | | # """"" # u ????????? | | # """"" # Y ????????? | | # """"" # g g ????????? | | # # ## gg######???????????????? | | # """"" + # @g!! #????????????????? | | # """"" # # g #????????????????? | | # """"" # # ! #????????????????? | | # # # "#???????????????? | | # # # """ """ T#???????????????? | | # # # """ """ "#???????????????? | | ############# """ """ ##???????????????? | | ????????????# #????????????????? | | ????????????##"T"######????????????????? | | ???????????????""??????????????????????? | | ???????????????##??????????????????????? | | ???????????????????????????????????????? | | ???????????????????????????????????????? | | ???????????????????????????????????????? | | ???????????????????????????????????????? | | ???????????????????????????????????????? | | ???????????????????????????????????????? | | | | | | | | | | | | | | | | | +----------------------------------------------------+ Best States ------------- Heat Dissipation 45 Energy Generation 14 Energy Capacity 250 Matter Stores 300 Matter Capacity 300 Sight Range 16 Robot Scan Range 15 Terrain Scan Density 10 Armor Coverage 300 Core Shielding 20 Evasion (%) 40 Recoil Reduction 2 Item Schematics ----------------- None Robot Schematics ------------------ None Fabricated ------------ Nothing Alien Tech Used ----------------- None Achievements -------------- Hey, That's Mine! I Spy Shopping List Challenges ------------ None Game ------ Seed NetworkTractorPod Manual? 0 Play Time 00:20:49 Cumulative 2.9 hours Start 2024.04.02 @ 06:39:20 End 2024.04.02 @ 06:59:23 Sessions 1 Manual Loads 0 Difficulty Rogue Special Mode None Game No. 7 Rogue 7 Adventurer 0 Explorer 0 Win Type - Total 0 Types 0/0/0/0/0/0/0/0/0 Lore% 13 Gallery% 8 Achievement% 10 Wizard Run 0 Options --------- Layout 1 ASCII 0 Keyboard 0 Movement Mouse Keybinds 0 Fullscreen 1 Font 24/Smallcaps Map View 50x40 Zoom Use 0% Tactical HUD 0 Map Filters NONE Filters NONE Steam 1 RUN: 98d21db7-ad92-4932-9422-ffbe9fa872ba